Cogmind - Beta 13 @@@ ROGUE MODE // 2024.07.30 @ 15:11:55 Player: OctagonalPrism Result: Destroyed by S-10 Pest with Light Assault Rifle Performance ------------- Evolutions (1) 500 Regions Visited (2) 400 Robots Destroyed (31) 155 Value Destroyed (912) 912 Prototype IDs (4) 80 Alien Tech Used (0) 0 Bonus (11) 11 TOTAL SCORE: 2058 Bonus ------- High Alert Combat Kills 11 Cogmind --------- Core Integrity 0/400 Matter 300/300 Energy 265/265 System Corruption 0% Temperature Cool (0) Movement Walking (260) Ox2 Location -9/Materials Parts ------- > --- POWER (1) -------- Improved Ion Engine > --- PROPULSION (2) --- Aluminum Leg > --- UTILITY (4) ------ Heat Sink Small Storage Unit Medium Storage Unit Core Shielding > --- WEAPON (2) ------- Light EM Pulse Cannon > --- INVENTORY (10) --- Cooled Ion Engine Medium Matter Pod (100) Mini Grenade Launcher Datajack Heavy Hammer Peak State ------------ > --- POWER ------------ Cooled Ion Engine > --- PROPULSION ------- Aluminum Leg Improved Aluminum Leg > --- UTILITY ---------- Heat Sink Small Storage Unit Sensor Array Light Armor Plating > --- WEAPON ----------- Beam Rifle Heavy Hammer > --- INVENTORY -------- Cooled Ion Engine Aluminum Leg Medium Matter Pod Light EM Pulse Cannon Light Assault Rifle Mini Grenade Launcher Datajack [Rating: 15] Favorites ----------- Power Ion Engine Engine Ion Engine Propulsion Aluminum Leg Leg Aluminum Leg Wheel Wheel Utility Small Storage Unit Device Sensor Array Storage Small Storage Unit Protection Light Armor Plating Weapon Light Assault Rifle Energy Gun Particle Gun Energy Cannon Light EM Pulse Cannon Ballistic Gun Light Assault Rifle Impact Weapon Heavy Hammer Special Melee Weapon Datajack Build | -11 -10 -9 ------- Run | Yrd Mat Mat Slots Evolved 2 | . . 2 Power . | . . . Propulsion . | . . . Utility 2 | . . 2 Weapon . | . . . Parts Attached 41 | 6 8 27 Power 5 | 1 1 3 Engine 5 | 1 1 3 Core . | . . . Reactor . | . . . Propulsion 10 | 2 3 5 Treads . | . . . Leg 8 | . 3 5 Wheel 2 | 2 . . Hover . | . . . Flight . | . . . Utility 10 | 1 2 7 Device 4 | . 2 2 Storage 2 | 1 . 1 Processor . | . . . Hackware . | . . . Protection 4 | . . 4 Artifact . | . . . Weapon 16 | 2 2 12 Energy Gun 5 | 1 1 3 Energy Cannon 1 | . . 1 Ballistic Gun 5 | 1 1 3 Ballistic Cannon . | . . . Launcher . | . . . Special Weapon . | . . . Impact Weapon 2 | . . 2 Slashing Weapon . | . . . Piercing Weapon . | . . . Special Melee Weapon 3 | . . 3 Unidentified Prototypes 1 | . . 1 Parts Lost 15 | . 5 10 Power 2 | . 1 1 Propulsion 5 | . 2 3 Utility 4 | . . 4 Weapon 4 | . 2 2 Highest Loss Streak 5 | . 4 5 To Critical Strikes . | . . . Average Slot Usage (%) 89 | . 88 89 Engine 11 | . 12 10 Leg 16 | . 9 20 Wheel 6 | . 15 . Device 14 | . 13 15 Storage 12 | . 14 11 Protection 5 | . . 8 Energy Gun 9 | . 9 9 Ballistic Gun 10 | . 13 8 Naked Turns . | . . . Heaviest Build 30 | 14 15 30 Greatest Support 23 | 20 20 23 Greatest Overweight (x) 4 | . 4 2 Average Overweight (x) . | . . . Largest Inventory Capacity 10 | 8 8 10 Average Capacity 8 | 6 8 8 Most Carried 8 | . 6 8 Average Carried 4 | . 3 6 Final Capacity 10 | 8 8 10 Final Carried 5 | . 4 5 Class Distribution -------------------- 67% | Scavenger-Mutant 32% | Mutant Dominant Class ---------------- Mutant | -10/Materials Scavenger-Mutant | -9/Materials Resources | -11 -10 -9 ----------- Run | Yrd Mat Mat Matter Collected 790 | 246 273 271 Remotely . | . . . Salvage Created 1065 | . 372 693 Parts 48 | . 18 30 Haulers Intercepted . | . . . Recyclers Shooed . | . . . Parts Field Recycled . | . . . Retrieved Matter . | . . . Parts Self-Destructed . | . . . Prevented . | . . . Kills | -11 -10 -9 ------- Run | Yrd Mat Mat Combat Hostiles Destroyed 27 | . 9 18 Melee 2 | . . 2 Guns 21 | . 9 12 Cannons 1 | . . 1 Classes Destroyed 6 | . 3 3 Operator 1 | . . 1 Watcher 3 | . 3 . Swarmer 7 | . 3 4 Grunt 15 | . 6 9 Duelist 2 | . . 2 Sentry 3 | . . 3 Best Kill Streak 4 | . 4 4 Combat Bots Only 4 | . 3 4 Max Kills in Single Turn 2 | . 1 2 Gunslinging 1 | . . 1 Exploded . | . . . Melee 1 | . . 1 Uniques/NPCs Destroyed . | . . . Combat | -11 -10 -9 -------- Run | Yrd Mat Mat Hostile Shots Fired 256 | . 54 202 Missed 65 | . 11 54 Damage Taken 2280 | . 550 1730 Core 538 | . 135 403 Absorbed by Shields . | . . . Redirected to Shielding 19 | . . 19 Core Remaining (%) 73 | 100 46 . Volleys Fired 89 | . 48 41 Largest 2 | . 2 2 Hottest 85 | . 85 85 Shots Fired 153 | . 71 82 Gun 149 | . 71 78 Cannon 4 | . . 4 Launcher . | . . . Special . | . . . Kinetic 89 | . 48 41 Thermal 47 | . 10 37 Explosive . | . . . Electromagnetic 17 | . 13 4 Robot Hit Streak 12 | . 9 12 Robot Miss Streak 3 | . 3 3 Penetration Max . | . . . Secondary Targets 2 | . . 2 Max Gunslinging Chain 1 | . . 1 Shots Hit Robots 133 | . 49 84 Core Hits 47 | . 20 27 Critical Kills . | . . . Critical Parts Destroyed . | . . . Critical Strikes 4 | . . 4 Burn 4 | . . 4 Melee Attacks 32 | . . 32 Impact 25 | . . 25 Slashing . | . . . Piercing . | . . . Sneak Attacks 5 | . . 5 Combat Hostiles . | . . . Follow-up Attacks . | . . . Damage Inflicted 2048 | . 578 1470 Guns 1200 | . 578 622 Cannons 58 | . . 58 Explosions . | . . . Melee 790 | . . 790 Ramming . | . . . Kinetic 587 | . 334 253 Thermal 463 | . 94 369 Explosive . | . . . Electromagnetic 208 | . 150 58 Impact 790 | . . 790 Slashing . | . . . Piercing . | . . . Highest Corruption . | . . . Average Corruption . | . . . Corruption Purged . | . . . Corruption Blocked . | . . . Overload Shots . | . . . Overflow Damage 99 | . . 99 Projectiles . | . . . Explosions . | . . . Melee 99 | . . 99 Knockbacks 7 | . . 7 Impact 6 | . . 6 Kinetic . | . . . Secondary 1 | . . 1 Self-Inflicted Damage . | . . . Shots . | . . . Rammed . | . . . Targets Rammed . | . . . Kicked . | . . . Crushed . | . . . Highest Temperature 213 | . 154 213 Average Temperature 60 | . 42 70 Received Heat Transfer 993 | . 297 696 Siege Activations . | . . . Robots Corrupted . | . . . Combat Hostiles . | . . . Parts Fried 4 | . . 4 Impact Corruptions 7 | . . 7 Robots Melted . | . . . Combat Hostiles . | . . . Parts Melted 7 | . 1 6 Heat Transferred 1443 | . 222 1221 Parts Sabotaged . | . . . Parts Stolen . | . . . Parts Stripped . | . . . Power Chain Reactions . | . . . Alert | -11 -10 -9 ------- Run | Yrd Mat Mat Peak Influence 403 | . 290 403 Initial 52 | . . 52 Average 189 | . 171 212 Maximum Alert Level 2 | . 1 2 Low Security (%) 51 | 100 57 44 Level 1 48 | . 42 55 Level 2 . | . . . Level 3 . | . . . Level 4 . | . . . Level 5 . | . . . High Security . | . . . Max Security . | . . . Squads Dispatched 2 | . . 2 Investigation 1 | . . 1 Extermination . | . . . Reinforcement 1 | . . 1 Assault . | . . . Garrison . | . . . Intercept . | . . . Searches Triggered . | . . . Construction Impeded . | . . . Haulers Reinforced . | . . . Active Scanning Responses . | . . . Cargo Convoy Interrupts . | . . . Stealth | -11 -10 -9 --------- Run | Yrd Mat Mat Distress Signals 5 | . 1 4 Communications Jammed . | . . . Distress Signals . | . . . Times Spotted 52 | . 19 33 Peak Tracking Total 7 | . 4 7 Tactical Retreats 6 | . 3 3 Traps | -11 -10 -9 ------- Run | Yrd Mat Mat Traps Triggered . | . . . Indirectly . | . . . Trap Hack Attempts . | . . . Triggered . | . . . Disarmed . | . . . Reprogrammed . | . . . Reused . | . . . Traps Extracted . | . . . Installed . | . . . Triggered . | . . . Machines | -11 -10 -9 ---------- Run | Yrd Mat Mat Machines Disabled . | . . . Max in Single Turn . | . . . Machines Repaired . | . . . Machines Dismantled . | . . . Machines Sabotaged . | . . . Overloaded Fab Kills . | . . . Hacking | -11 -10 -9 --------- Run | Yrd Mat Mat Machines Accessed 8 | . 4 4 Terminals 7 | . 3 4 Fabricators . | . . . Repair Stations . | . . . Recycling Units 1 | . 1 . Scanalyzers . | . . . Garrison Access . | . . . Total Hacks 27 | . 16 11 Successful 18 | . 10 8 Failed 9 | . 6 3 Catastrophic . | . . . Database Lockouts . | . . . Manual 20 | . 12 8 Terminals 25 | . 14 11 Fabricators . | . . . Repair Stations . | . . . Recycling Units 2 | . 2 . Scanalyzers . | . . . Garrison Access . | . . . Terminal Hacks 6 | . 3 3 Robot Analysis 1 | . . 1 Prototype ID Bank 2 | . . 2 Branch Access Points 1 | . 1 . Terminal Index 1 | . 1 . Zone Layout 1 | . 1 . Fabricator Hacks . | . . . Repair Station Hacks . | . . . Recycling Unit Hacks 2 | . 2 . Report Inventory 1 | . 1 . Retrieve Components 1 | . 1 . Scanalyzer . | . . . Garrison Access Hacks . | . . . Unauthorized Hacks 10 | . 5 5 Terminals 10 | . 5 5 Assimilate 1 | . 1 . Botnet 7 | . 3 4 Operators 2 | . 1 1 Fabricators . | . . . Repair Stations . | . . . Recycling Units . | . . . Scanalyzers . | . . . Garrison Access . | . . . Data Cores Recovered . | . . . Used . | . . . Hacking Detections 6 | . 2 4 Full Trace Events 1 | . . 1 Feedback Events . | . . . Feedback Blocked . | . . . Robot Schematics Acquired . | . . . Robots Built . | . . . Authchips . | . . . Time . | . . . Total Robot Build Rating . | . . . Part Schematics Acquired . | . . . Parts Built . | . . . Authchips . | . . . Time . | . . . Total Part Build Rating . | . . . Parts Repaired . | . . . Time . | . . . Parts Recycled . | . . . Recycled Matter . | . . . Retrieved Matter . | . . . Retrieved Components 5 | . 5 . Parts Scanalyzed . | . . . Part Schematics Acquired . | . . . Parts Damaged . | . . . Bothacking | -11 -10 -9 ------------ Run | Yrd Mat Mat Used RIF Installer . | . . . Robots Hacked 2 | . . 2 Non-combat 2 | . . 2 Combat . | . . . Robot Hacks Applied 4 | . . 4 parse_system 2 | . . 2 no_distress 1 | . . 1 check_alert 1 | . . 1 Relay Couplers Released . | . . . Fabnet Peak Effective % . | . . . Robots Rewired . | . . . Allies Hacked . | . . . Hacks Repelled . | . . . Allies | -11 -10 -9 -------- Run | Yrd Mat Mat Total Allies . | . . . Largest Group . | . . . Highest-Rated Group . | . . . Highest-Rated Ally . | . . . Total Orders . | . . . Ally Attacks . | . . . Total Damage . | . . . Kills . | . . . Allies Corrupted . | . . . Allies Melted . | . . . Intel | -11 -10 -9 ------- Run | Yrd Mat Mat Robot Analysis Total 1 | . . 1 Derelict Logs Recovered . | . . . Drone Launches . | . . . Drone Recoveries . | . . . Exploration | -11 -10 -9 ------------- Run | Yrd Mat Mat Turns Passed 1424 | 46 564 814 Spaces Moved 923 | 48 441 434 Core 13 | 4 9 . Treads . | . . . Legs 558 | . 124 434 Wheels 352 | 44 308 . Hover . | . . . Flight . | . . . Fastest Speed 50 | 50 80 120 Average Speed 108 | 77 94 127 Slowest Speed 260 | 80 250 260 Overloaded Moves . | . . . Propulsion Burnouts . | . . . Robots Hopped . | . . . Cave-ins Triggered . | . . . Exploration Rate (%) 28 | 3 51 30 Regions Visited 2 Branch Regions . Pre-discovered Areas . | . . . Known Exits Taken . | . . . Unknown Exits Taken 2 | 1 1 . Scrap Searched . | . . . Spaces Dug . | . . . Terrain Destroyed . | . . . Melee . | . . . Projectile . | . . . AOE . | . . . Terrain Rammed . | . . . Walls Destroyed . | . . . Machines Disabled . | . . . Actions | -11 -10 -9 --------- Run | Yrd Mat Mat Total 1141 | 53 518 570 Wait 37 | . 16 21 Move 921 | 47 440 434 Hop . | . . . Pick Up 9 | . 4 5 Fast Attach 21 | 6 6 9 Attach 3 | . . 3 Detach . | . . . Swap 17 | . 2 15 Drop 12 | . 2 10 Fire 89 | . 48 41 Melee 32 | . . 32 Ram . | . . . Kick . | . . . Crush . | . . . Escape Stasis . | . . . Rewire . | . . . Trap . | . . . Miscellaneous . | . . . Route ------- -11/Scrapyard -10/Materials (discovered 3 exits: *Mat / *Min x2) -9/Materials (discovered 1 exit: [*Min]) History --------- Turn | Location | Event 7 | -11/Scrapyard | Discovered new exit (range 16) 47 | -11/Scrapyard | Entered Materials 69 | -10/Materials | Discovered new exit (range 15) 228 | -10/Materials | Discovered new exit (range 13) 241 | -10/Materials | Identified exit to Mines 314 | -10/Materials | Build established: Mutant 409 | -10/Materials | Lost 4 parts (1p2n1w) 465 | -10/Materials | Core integrity fell below 50% 611 | -10/Materials | Entered another Materials area 611 | -9/Materials | Evolved 2 slots: Utility x2 696 | -9/Materials | Build established: Scavenger-Mutant 1308 | -9/Materials | Core integrity fell below 50% 1336 | -9/Materials | Lost 5 parts (2n2u1w) 1405 | -9/Materials | Core integrity fell below 20% 1415 | -9/Materials | Discovered new exit (range 9) 1425 | -9/Materials | Destroyed by S-10 Pest with Light Assault Rifle Last Messages --------------- Reading system data... K-01 Serf collects debris. R-06 Scavenger collects Sml. Laser. Acquired Med. Storage Unit. W-16 Scout sends out distress signal. R-06 Scavenger collects Aluminum Leg. Cld. Ion Engine destroyed. L-31 Rogue destroyed. K-01 Serf collects debris. Sensor Array destroyed. Acquired Core Shielding. K-01 Serf collects debris. Acquired Imp. Ion Engine. Aluminum Leg destroyed. Acquired 49 matter. K-01 Serf collects debris. Lgt. Assault Rifle destroyed. K-01 Serf collects debris. EXIT=FOUND K-01 Serf collects debris. Map ----- +----------------------------------------------------+ | ??????????????????????????????????????# """"" | | ??????????????????????????????????????# """"" | | ??????????????????????????????????????# """"" | | ??????????????????????????????????????# """ | | ??????????????????????????????????????# | | ??????????????????????????????????????#########+## | | ??????????????????????????????????????# # # | | ??????????????????????????????????????# """ # T | | ??????????????????????????????????????#= """ # # | | ??????????????????????????????????????# """ + # | | ??????????????????????????????????????#! # # | | ??????????????????????????????????????# # # | | ??????????????????????????????????????######## # | | ?????????????????????????????????????????????# | | ?????????????????????????????????????????????# | | ?????????????????????????????????????###?????# | | ????????????????????????????????###### ###???# | | ????????????????????????????????# #???# "" | | ????????????????????????????????# #???# "" | | ????????????????????????????????# /= #???# "" | | ????????????????????????????????# [= %##### "" | | ???????????????########?????????# == %+* % "" | | ???????????##### ##+###???# =% ##### | | ?????????? ##### #???# | | ?????????? < ss + | #???# # | | ?????????? k @ ##### #???# # | | ??????????????## ## #???#####+######## + | | ???????????????# "!"!???# #??????# # | | ???????????????#""!?????# ######## # | | ????????????????#???????#=! # | | ????????????????????#####% # | | ???????????????????##! = # | | ???????????????????# k """" # | | ???????????????????#! """" # | | ???????????????????#! g % % """" | | ???????????????????#! g ##+###### | | ???????????????????##! ##%%* ## | | ????????????????????#### ## [ ## ########+## | | ???????????????????????# ## ## # [ | | ???????????????????????# + ## # | | ??????????????????????? ## ! ## # """ """ | | ?????????????????????? ## ## # """ """ | | ????????????????????? ########## # """ """ | | ???????????????????? # | | ?????????????????????####### ######### #######+### | | ???????????????????????????? ## # | | ???????????????????????????? ## """ + | | ???????????????????????????? ## """ # | | ??????????????????????????????# """ # #### ## | | ??????????????????????????????# # #??# #? | +----------------------------------------------------+ Best States ------------- Heat Dissipation 38 Energy Generation 14 Energy Capacity 280 Matter Stores 300 Matter Capacity 300 Sight Range 16 Robot Scan Range 14 Terrain Scan Density 10 Armor Coverage 150 Core Shielding 20 Evasion (%) 55 Item Schematics ----------------- None Robot Schematics ------------------ None Fabricated ------------ Nothing Alien Tech Used ----------------- None Achievements -------------- None Challenges ------------ None Game ------ Seed ParticlePiercingRigger Manual? 0 Play Time 00:18:48 Cumulative 48.5 hours Start 2024.07.30 @ 14:55:19 End 2024.07.30 @ 15:11:55 Sessions 1 Manual Loads 0 Difficulty Rogue Special Mode None Game No. 44 Rogue 44 Adventurer 0 Explorer 0 Win Type - Total 0 Types 0/0/0/0/0/0/0/0/0 Lore% 28 Gallery% 37 Achievement% 27 Wizard Run 0 Options --------- Layout 1 ASCII 0 Keyboard 0 Movement Mouse Keybinds 0 Fullscreen 1 Font 16/Terminus Map View 55x38 Zoom Use 0% Tactical HUD 0 Map Filters NONE Filters NONE Steam 1 RUN: b226af45-9135-4ded-806f-671b69618fd9